Cogmind - Beta 14 @@@ ROGUE MODE // 2024.08.19 @ 01:14:16 Player: THN-L0C Result: Self-destructed Performance ------------- Evolutions (2) 1000 Regions Visited (4) 800 Robots Destroyed (24) 120 Value Destroyed (449) 449 Prototype IDs (2) 40 Alien Tech Used (0) 0 Bonus (147) 147 TOTAL SCORE: 2556 Bonus ------- Follower Combat Kills 147 Cogmind --------- Core Integrity 498/550 Matter 300/300 Energy 232/250 System Corruption 0% Temperature Cool (0) Movement Walking (190) Ox1 Location -8/Materials Parts ------- > --- POWER (1) -------- Ion Engine > --- PROPULSION (6) --- Aluminum Leg > --- UTILITY (2) ------ Medium Storage Unit Structural Scanner > --- WEAPON (2) ------- Heavy EM Shotgun > --- INVENTORY (10) --- Aluminum Leg Cryofiber Web Cryofiber Web Large Matter Pod (150) Machine Analyzer Heavy EM Shotgun Grenade Launcher Hammer Mace Peak State ------------ > --- POWER ------------ Light Ion Engine > --- PROPULSION ------- Aluminum Leg Aluminum Leg > --- UTILITY ---------- Medium Storage Unit Structural Scanner > --- WEAPON ----------- Heavy EM Shotgun Heavy EM Shotgun > --- INVENTORY -------- Ion Engine Aluminum Leg Cryofiber Web Large Matter Pod Machine Analyzer Heavy EM Shotgun Heavy EM Shotgun Grenade Launcher Hammer Mace [Rating: 15] Favorites ----------- Power Light Ion Engine Engine Light Ion Engine Propulsion Aluminum Leg Leg Aluminum Leg Utility Medium Storage Unit Device Structural Scanner Storage Medium Storage Unit Protection Light Armor Plating Weapon Assault Rifle Energy Gun Heavy EM Shotgun Ballistic Gun Assault Rifle Launcher Grenade Launcher Impact Weapon Mace Build | -11 -10 -10 -9 -8 ------- Run | Yrd Mat Min Mat Mat Slots Evolved 4 | . . . 2 2 Power . | . . . . . Propulsion 4 | . . . 2 2 Utility . | . . . . . Weapon . | . . . . . Parts Attached 20 | 6 6 . 7 1 Power 5 | 1 1 . 2 1 Engine 5 | 1 1 . 2 1 Core . | . . . . . Reactor . | . . . . . Propulsion 5 | 2 2 . 1 . Treads . | . . . . . Leg 5 | 2 2 . 1 . Wheel . | . . . . . Hover . | . . . . . Flight . | . . . . . Utility 4 | 1 3 . . . Device 1 | . 1 . . . Storage 2 | 1 1 . . . Processor . | . . . . . Hackware . | . . . . . Protection 1 | . 1 . . . Artifact . | . . . . . Weapon 6 | 2 . . 4 . Energy Gun 2 | . . . 2 . Energy Cannon . | . . . . . Ballistic Gun 2 | 2 . . . . Ballistic Cannon . | . . . . . Launcher 1 | . . . 1 . Special Weapon . | . . . . . Impact Weapon 1 | . . . 1 . Slashing Weapon . | . . . . . Piercing Weapon . | . . . . . Special Melee Weapon . | . . . . . Unidentified Prototypes 2 | . . . 2 . Parts Lost 6 | . 2 . 1 3 Power 2 | . 1 . . 1 Propulsion 2 | . . . 1 1 Utility 1 | . 1 . . . Weapon 1 | . . . . 1 Highest Loss Streak 3 | . 2 . 1 3 To Critical Strikes . | . . . . . Average Slot Usage (%) 89 | . 92 100 76 56 Engine 12 | . 11 14 11 8 Leg 25 | . 28 28 21 15 Device 9 | . 3 14 11 9 Storage 13 | . 14 14 11 9 Protection 2 | . 6 . . . Energy Gun 1 | . . . 2 14 Ballistic Gun 23 | . 28 28 13 . Peak Build Rating 15 | 6 7 7 15 15 Average Rating 7 | 4 6 7 8 12 On Entrance 7 | . 6 7 7 15 Naked Turns . | . . . . . Heaviest Build 24 | 11 19 17 22 24 Greatest Support 20 | 20 20 20 20 20 Greatest Overweight (x) 1 | 1 . . 1 1 Average Overweight (x) . | . . . . . Largest Inventory Capacity 10 | 8 10 10 10 10 Average Capacity 9 | 6 9 10 10 10 Most Carried 10 | . 6 6 10 10 Average Carried 5 | . 3 6 6 9 Final Capacity 10 | 8 10 10 10 10 Final Carried 10 | . 6 6 10 9 Class Distribution -------------------- 100% | Mutant Dominant Class ---------------- Mutant | -10/Materials Mutant | -10/Mines Mutant | -9/Materials Mutant | -8/Materials Resources | -11 -10 -10 -9 -8 ----------- Run | Yrd Mat Min Mat Mat Matter Collected 643 | 186 92 131 52 182 Remotely . | . . . . . Salvage Created 738 | . 267 . 50 421 Parts 40 | . 20 . 3 17 Haulers Intercepted 1 | . 1 . . . Recyclers Shooed 1 | . . . . 1 Parts Field Recycled . | . . . . . Retrieved Matter . | . . . . . Parts Self-Destructed . | . . . . . Prevented . | . . . . . Kills | -11 -10 -10 -9 -8 ------- Run | Yrd Mat Min Mat Mat Combat Hostiles Destroyed 18 | . 9 . 2 7 Guns 14 | . 8 . . 6 AOE 4 | . 1 . 2 1 Classes Destroyed 6 | . 4 . . 2 Worker 1 | . . . . 1 Builder 2 | . 1 . . 1 Hauler 1 | . 1 . . . Recycler 2 | . . . . 2 Swarmer 10 | . 6 . . 4 Grunt 8 | . 3 . 2 3 Best Kill Streak 7 | . 7 . 2 6 Combat Bots Only 5 | . 5 . 2 3 Max Kills in Single Turn 2 | . 2 . 2 2 Gunslinging . | . . . . . Exploded 2 | . 1 . 2 1 Melee . | . . . . . Uniques/NPCs Destroyed . | . . . . . Combat | -11 -10 -10 -9 -8 -------- Run | Yrd Mat Min Mat Mat Hostile Shots Fired 117 | . 54 . 29 34 Missed 40 | . 20 . 11 9 Damage Taken 896 | . 345 . 210 341 Core 153 | . 72 . 29 52 Absorbed by Shields . | . . . . . Core Remaining (%) 87 | 100 . 71 92 . Volleys Fired 51 | . 28 . 3 20 Largest 2 | . 2 . 1 2 Hottest 100 | . 40 . 30 100 Shots Fired 85 | . 56 . 3 26 Gun 83 | . 56 . 1 26 Cannon . | . . . . . Launcher 2 | . . . 2 . Special . | . . . . . Kinetic 57 | . 56 . 1 . Thermal . | . . . . . Explosive 2 | . . . 2 . Electromagnetic 26 | . . . . 26 Robot Hit Streak 7 | . 7 . . 6 Robot Miss Streak 4 | . 4 . . 4 Penetration Max . | . . . . . Secondary Targets 2 | . 1 . . 1 Max Gunslinging Chain 1 | . 1 . . 1 Shots Hit Robots 57 | . 30 . 3 24 Core Hits 39 | . 14 1 5 19 Critical Kills . | . . . . . Critical Parts Destroyed . | . . . . . Critical Strikes . | . . . . . Melee Attacks 8 | . . . 8 . Impact 8 | . . . 8 . Slashing . | . . . . . Piercing . | . . . . . Sneak Attacks 1 | . . . 1 . Combat Hostiles . | . . . . . Follow-up Attacks . | . . . . . Damage Inflicted 1395 | . 397 19 206 773 Guns 715 | . 255 . . 460 Cannons . | . . . . . Explosions 539 | . 142 . 84 313 Melee 122 | . . . 122 . Ramming 19 | . . 19 . . Kinetic 255 | . 255 . . . Thermal 313 | . . . . 313 Explosive 226 | . 142 . 84 . Electromagnetic 460 | . . . . 460 Impact 122 | . . . 122 . Slashing . | . . . . . Piercing . | . . . . . Highest Corruption . | . . . . . Average Corruption . | . . . . . Corruption Purged . | . . . . . Corruption Blocked . | . . . . . Overload Shots . | . . . . . Overflow Damage 52 | . 27 . 22 3 Projectiles . | . . . . . Explosions 30 | . 27 . . 3 Melee 22 | . . . 22 . Knockbacks 2 | . . . 2 . Impact 2 | . . . 2 . Kinetic . | . . . . . Secondary . | . . . . . Self-Inflicted Damage 65 | . 58 . . 7 Shots 2 | . 1 . . 1 Rammed . | . . . . . Targets Rammed 4 | . . 4 . . Kicked 4 | . . 4 . . Crushed . | . . . . . Highest Temperature 393 | . 6 . 393 60 Average Temperature 56 | . 3 . 197 25 Received Heat Transfer 258 | . 42 . 99 117 Siege Activations . | . . . . . Robots Corrupted . | . . . . . Combat Hostiles . | . . . . . Parts Fried . | . . . . . Impact Corruptions 1 | . . . 1 . Robots Melted . | . . . . . Combat Hostiles . | . . . . . Parts Melted 1 | . . . . 1 Heat Transferred 450 | . . . . 450 Parts Sabotaged . | . . . . . Parts Stolen . | . . . . . Parts Stripped . | . . . . . Power Chain Reactions 3 | . . . . 3 Alert | -11 -10 -10 -9 -8 ------- Run | Yrd Mat Min Mat Mat Peak Influence 323 | . 323 88 221 283 Initial 92 | . . 55 33 92 Average 100 | . 133 60 118 154 Maximum Alert Level 1 | . 1 . 1 1 Low Security (%) 87 | 100 78 100 82 67 Level 1 12 | . 21 . 17 32 Level 2 . | . . . . . Level 3 . | . . . . . Level 4 . | . . . . . Level 5 . | . . . . . High Security . | . . . . . Max Security . | . . . . . Squads Dispatched 4 | . 2 . 2 . Investigation 2 | . 1 . 1 . Extermination . | . . . . . Reinforcement 2 | . 1 . 1 . Assault . | . . . . . Garrison . | . . . . . Intercept . | . . . . . Searches Triggered . | . . . . . Construction Impeded . | . . . . . Haulers Reinforced . | . . . . . Active Scanning Responses . | . . . . . Cargo Convoy Interrupts . | . . . . . Stealth | -11 -10 -10 -9 -8 --------- Run | Yrd Mat Min Mat Mat Distress Signals 2 | . . . 2 . Communications Jammed . | . . . . . Distress Signals . | . . . . . Times Spotted 43 | . 16 2 8 17 Peak Tracking Total 8 | . 5 2 4 8 Tactical Retreats 3 | . 2 1 . . Traps | -11 -10 -10 -9 -8 ------- Run | Yrd Mat Min Mat Mat Traps Triggered 1 | . 1 . . . Indirectly . | . . . . . Trap Hack Attempts . | . . . . . Triggered . | . . . . . Disarmed . | . . . . . Reprogrammed . | . . . . . Reused . | . . . . . Traps Extracted . | . . . . . Installed . | . . . . . Triggered . | . . . . . Machines | -11 -10 -10 -9 -8 ---------- Run | Yrd Mat Min Mat Mat Machines Disabled 1 | . 1 . . . Max in Single Turn 1 | . 1 . . . Machines Repaired . | . . . . . Machines Dismantled . | . . . . . Machines Sabotaged . | . . . . . Overloaded Fab Kills . | . . . . . Hacking | -11 -10 -10 -9 -8 --------- Run | Yrd Mat Min Mat Mat Machines Accessed 1 | . 1 . . . Terminals 1 | . 1 . . . Fabricators . | . . . . . Repair Stations . | . . . . . Recycling Units . | . . . . . Scanalyzers . | . . . . . Garrison Access . | . . . . . Total Hacks 1 | . 1 . . . Successful 1 | . 1 . . . Failed . | . . . . . Catastrophic . | . . . . . Database Lockouts . | . . . . . Manual 1 | . 1 . . . Terminals 1 | . 1 . . . Fabricators . | . . . . . Repair Stations . | . . . . . Recycling Units . | . . . . . Scanalyzers . | . . . . . Garrison Access . | . . . . . Terminal Hacks 1 | . 1 . . . Robot Analysis 1 | . 1 . . . Fabricator Hacks . | . . . . . Repair Station Hacks . | . . . . . Recycling Unit Hacks . | . . . . . Scanalyzer . | . . . . . Garrison Access Hacks . | . . . . . Unauthorized Hacks . | . . . . . Terminals . | . . . . . Fabricators . | . . . . . Repair Stations . | . . . . . Recycling Units . | . . . . . Scanalyzers . | . . . . . Garrison Access . | . . . . . Data Cores Recovered . | . . . . . Used . | . . . . . Hacking Detections 1 | . 1 . . . Full Trace Events . | . . . . . Feedback Events . | . . . . . Feedback Blocked . | . . . . . Robot Schematics Acquired . | . . . . . Robots Built . | . . . . . Authchips . | . . . . . Time . | . . . . . Total Robot Build Rating . | . . . . . Part Schematics Acquired . | . . . . . Parts Built . | . . . . . Authchips . | . . . . . Time . | . . . . . Total Part Build Rating . | . . . . . Parts Repaired . | . . . . . Time . | . . . . . Parts Recycled . | . . . . . Recycled Matter . | . . . . . Retrieved Matter . | . . . . . Retrieved Components . | . . . . . Parts Scanalyzed . | . . . . . Part Schematics Acquired . | . . . . . Parts Damaged . | . . . . . Bothacking | -11 -10 -10 -9 -8 ------------ Run | Yrd Mat Min Mat Mat Used RIF Installer . | . . . . . Robots Hacked . | . . . . . Non-combat . | . . . . . Combat . | . . . . . Robot Hacks Applied . | . . . . . Relay Couplers Released . | . . . . . Fabnet Peak Effective % . | . . . . . Robots Rewired . | . . . . . Allies Hacked . | . . . . . Hacks Repelled . | . . . . . Allies | -11 -10 -10 -9 -8 -------- Run | Yrd Mat Min Mat Mat Total Allies 3 | . . 3 . . Largest Group 3 | . . 3 3 . Highest-Rated Group 40 | . . 40 40 . Highest-Rated Ally 16 | . . 16 16 . Total Orders . | . . . . . Ally Attacks 38 | . . 11 27 . Total Damage 412 | . . 134 278 . Kills 8 | . . 2 6 . Allies Corrupted . | . . . . . Allies Melted . | . . . . . Intel | -11 -10 -10 -9 -8 ------- Run | Yrd Mat Min Mat Mat Robot Analysis Total 1 | . 1 . . . Derelict Logs Recovered 1 | . . 1 . . Drone Launches . | . . . . . Drone Recoveries . | . . . . . Exploration | -11 -10 -10 -9 -8 ------------- Run | Yrd Mat Min Mat Mat Turns Passed 1846 | 48 619 749 239 191 Spaces Moved 1291 | 35 433 601 153 69 Core 10 | 10 . . . . Treads . | . . . . . Legs 1281 | 25 433 601 153 69 Wheels . | . . . . . Hover . | . . . . . Flight . | . . . . . Fastest Speed 50 | 50 120 120 120 120 Average Speed 124 | 114 120 120 127 188 Slowest Speed 190 | 190 120 120 190 190 Overloaded Moves . | . . . . . Propulsion Burnouts . | . . . . . Robots Hopped . | . . . . . Cave-ins Triggered . | . . . . . Exploration Rate (%) 39 | 4 67 96 22 7 Regions Visited 4 Branch Regions 1 Pre-discovered Areas 1 | . . 1 . . Known Exits Taken . | . . . . . Unknown Exits Taken 4 | 1 1 1 1 . Scrap Searched 1 | . . 1 . . Spaces Dug 2 | . . . 2 . Terrain Destroyed 65 | . 36 . 11 18 Melee 2 | . . . 2 . Projectile . | . . . . . AOE 63 | . 36 . 9 18 Terrain Rammed . | . . . . . Walls Destroyed . | . . . . . Machines Disabled . | . . . . . Actions | -11 -10 -10 -9 -8 --------- Run | Yrd Mat Min Mat Mat Total 1430 | 40 480 628 179 103 Wait 45 | . 8 24 . 13 Move 1287 | 34 432 600 152 69 Hop . | . . . . . Pick Up 12 | . 5 . 7 . Fast Attach 8 | 6 2 . . . Attach 3 | . 1 . 1 1 Detach . | . . . . . Swap 9 | . 3 . 6 . Drop 3 | . 1 . 2 . Fire 51 | . 28 . 3 20 Melee 8 | . . . 8 . Ram . | . . . . . Kick 4 | . . 4 . . Crush . | . . . . . Escape Stasis . | . . . . . Rewire . | . . . . . Trap . | . . . . . Miscellaneous . | . . . . . Route ------- -11/Scrapyard -10/Materials (discovered 3 exits: [*Mat x2] / [*Min]) -10/Mines (discovered 2 exits: [*Mat x2]) -9/Materials -8/Materials History --------- Turn | Location | Event 2 | -11/Scrapyard | Met Revision 17 8 | -11/Scrapyard | Discovered new exit (range 16) 49 | -11/Scrapyard | Entered Materials 316 | -10/Materials | Build established: Mutant 399 | -10/Materials | Discovered new exit (range 16) 535 | -10/Materials | Discovered new exit (range 7) 656 | -10/Materials | Discovered new exit (range 11) 668 | -10/Materials | Entered Mines 734 | -10/Mines | Learned Materials emergency access door positions 1010 | -10/Mines | Discovered new exit (range 11) 1147 | -10/Mines | Assisted by bots powering up and referring to "LRC-V3" 1196 | -10/Mines | Learned location of Storage (-7) 1386 | -10/Mines | Discovered new exit (range 12) 1417 | -10/Mines | Entered Materials 1417 | -9/Materials | Accompanied by 3 allies 1417 | -9/Materials | Evolved 2 slots: Propulsion x2 1581 | -9/Materials | Discovered new exit (range 14) 1626 | -9/Materials | Lost 3 allies 1656 | -9/Materials | Entered another Materials area 1656 | -8/Materials | Evolved 2 slots: Propulsion x2 1817 | -8/Materials | Lost 3 parts (1p1n1w) 1847 | -8/Materials | Self-destructed Last Messages --------------- 01789_ G-47 Trooper destroyed. 01789_ R-06 Scavenger collects Corrupted Imp. Heat Sink. 01791_ K-01 Serf collects debris. 01791_ U-05 Engineer destroyed. 01791_ K-01 Serf destroyed. 01792_ R-06 Scavenger collects Wheel. 01793_ Chain reaction triggered in Lgt. Ion Engine. 01795_ R-06 Scavenger destroyed. 01796_ U-05 Engineer lays Concrete. 01797_ Acquired 130 matter. 01798_ U-05 Engineer builds a Wall. 01799_ Acquired 52 matter. 01802_ U-05 Engineer lays Concrete. 01803_ U-05 Engineer builds a Wall. 01808_ U-05 Engineer lays Concrete. 01809_ U-05 Engineer builds a Wall. 01817_ U-05 Engineer lays Concrete. 01818_ U-05 Engineer builds a Wall. 01843_ S-10 Pest destroyed. 01844_ K-01 Serf collects debris. Map ----- +----------------------------------------------------+ | ?????????????????????????????????????????????????? | | ?????????????????????????????????????????????????? | | ?????????????????????????????????????????????????? | | ?????????????????????????????????????????????????? | | ?????????????????????????????????????????????????? | | ?????????????????????????????????????????????????? | | ?????????????????????????????????????????????????? | | ?????????????????????????????????????????????????? | | ?????????????????????????????????????????????????? | | ?????????????????????????????????????????????????? | | ?????????????????????????????????????????????????? | | ?????????????????????????????????????????????????? | | ?????????????????????????????????????????????????? | | ?????????????????????????????????????????????????? | | ?????????????????????????????????????????????????? | | ?????????????????????????????????????????????????? | | ?????????????????????????????????????????????????? | | ?????????????????????????????????????????????????? | | ?????????????????????????????????????????????????? | | ?????????????????????? ###########???????????????? | | ?????????????????????? ###########???????????????? | | ?????????????????????? # ##???????????????? | | ?????????###???### ?? # ##???????????????? | | ?????????## ###+?? # """ ##???????????????? | | ????????? g # """""##???????????????? | | ?????????? Y =k%@ """""##???????????????? | | ????????? # """""##???????????????? | | ?????????## # ??? # """ ############# ???? | | ?????????###???## ???? # ############# ???? | | ?????????????????????? # w r/ T | | ??????????????????????##############%######## ???? | | ??????????????????????############## ######## ???? | | ??????????????????????????????????##%##??????????? | | ??????????????????????????????????## ##??????????? | | ????????????????????????????????#### ####????????? | | ????????????????????????????????####%####????????? | | ????????????????????????????????##=#!#=##????????? | | ????????????????????????????????####!#!##????????? | | ?????????????????????????????????###|%!##????????? | | ?????????????????????????????????###%% ##????????? | | ?????????????????????????????????###!####????????? | | ??????????????????????????????????##=####????????? | | ??????????????????????????????????##*##??????????? | | ??????????????????????????????????## ##??????????? | | ??????????????????????????????????## # ??????????? | | ??????????????????????????????????## # ??????????? | | ??????????????????????????????????## # ??????????? | | ??????????????????????????????????## # ??????????? | | ??????????????????????????????????## # ??????????? | | ??????????????????????????????????## # ??????????? | +----------------------------------------------------+ Best States ------------- Heat Dissipation 31 Energy Generation 10 Energy Capacity 250 Matter Stores 300 Matter Capacity 300 Sight Range 16 Terrain Scan Density 10 Armor Coverage 150 Evasion (%) 55 Item Schematics ----------------- None Robot Schematics ------------------ None Fabricated ------------ Nothing Alien Tech Used ----------------- None Achievements -------------- None Challenges ------------ None Game ------ Seed ZhirovTerrabombThrower Manual? 0 Play Time 00:09:08 Cumulative 74.8 hours Start 2024.08.19 @ 01:06:07 End 2024.08.19 @ 01:14:16 Sessions 1 Manual Loads 0 Difficulty Rogue Special Mode None Game No. 77 Rogue 77 Adventurer 0 Explorer 0 Win Type - Total 0 Types 0/0/0/0/0/0/0/0/0 Lore% 46 Gallery% 49 Achievement% 40 Wizard Run 0 Options --------- Layout 2 ASCII 0 Keyboard 1 Movement Vi Keybinds 0 Fullscreen 1 Font 32/SmallcapsGlow Map View 77x44 Zoom Use 0% Tactical HUD 1 Map Filters NONE Filters NONE Steam 1 RUN: 901bd268-93e4-4380-a46c-6ca531339f20